fUST/lending_fUST_20251113
["ID","MTS","AMOUNT","RATE_DAILY","PERIOD"]
[393788482,1762989034398,-735.31530007,0.00027396,2]
[393788483,1762989034407,-1161.77712436,0.00027396,2]
[393788484,1762989034417,-735.31530007,0.00027396,2]
[393788485,1762989034427,-1161.77712436,0.00027396,2]
[393788486,1762989034436,-600.0,0.00027396,2]
[393788487,1762989034446,-735.31530007,0.00027396,2]
[393788488,1762989034455,-1161.77712436,0.00027396,2]
[393788489,1762989034465,-1161.77712436,0.00027396,2]
[393788490,1762989034475,-1161.77712436,0.00027396,2]
[393788491,1762989034485,-1161.77712436,0.00027396,2]
[393788492,1762989034495,-1161.77712436,0.00027396,2]
[393788493,1762989034504,-735.31530007,0.00027396,2]
[393788494,1762989034514,-1161.77712436,0.00027396,2]
[393788495,1762989034528,-735.31530007,0.00027396,2]
[393788496,1762989034537,-1161.77712436,0.00027396,2]
[393788497,1762989034547,-735.31530007,0.00027396,2]
[393788498,1762989034557,-1161.77712436,0.00027396,2]
[393788499,1762989034567,-1161.77712436,0.00027396,2]
[393788500,1762989034578,-1161.77712436,0.00027396,2]
[393788501,1762989034588,-735.31530007,0.00027396,2]
[393788502,1762989034599,-1161.77712436,0.00027396,2]
[393788503,1762989034608,-735.31530007,0.00027396,2]
[393788504,1762989034618,-1161.77712436,0.00027396,2]
[393788505,1762989034627,-735.31530007,0.00027396,2]
[393788506,1762989034637,-1161.77712436,0.00027396,2]
[393788507,1762989034646,-1161.77712436,0.00027396,2]
[393788508,1762989034655,-1161.77712436,0.00027396,2]
[393788509,1762989034665,-1161.77712436,0.00027396,2]
[393788510,1762989034674,-1161.77712433,0.00027396,2]
[393788511,1762989034683,-1161.77712433,0.00027396,2]
[393788512,1762989034692,-151.0,0.00027396,7]
[393788513,1762989034701,-151.0,0.00027396,7]
[393788514,1762989034711,-151.0,0.00027396,7]
[393788515,1762989034719,-298.5,0.00027397,3]
[393788516,1762989034730,-151.0,0.00027397,7]
[393788517,1762989034740,-151.0,0.00027397,7]
[393788518,1762989034749,-255.672807,0.00027397,7]
[393788519,1762989034758,-155.77756144,0.0002751,5]
[393788520,1762989034768,-689.20880873,0.00027512,2]
[393788521,1762989034776,-500.0,0.00027521,5]
[393788522,1762989034786,-500.0,0.0002767,2]
[393788523,1762989034796,-177.0,0.0002789,2]
[393788524,1762989034805,-505.1461733,0.00027921,5]
[393788525,1762989034814,-1000.0,0.00027921,3]
[393788526,1762989034824,-1000.0,0.00027921,5]
[393788527,1762989034832,-500.0,0.00027921,5]
[393788528,1762989034841,-930.63537826,0.00027921,5]
[393788529,1762989034850,-500.0,0.00027921,5]
[393788530,1762989034859,-1000.0,0.00027921,5]
[393788531,1762989034868,-500.0,0.00027944,2]
[393788532,1762989034877,-1379.35850862,0.00028139,2]
[393788533,1762989034887,-482.31,0.00028152,2]
[393788534,1762989034896,-500.0,0.00028218,2]
[393788535,1762989034905,-151.0,0.00028224,2]
[393788536,1762989034915,-151.0,0.00028224,2]
[393788537,1762989034924,-151.0,0.00028224,2]
[393788538,1762989034933,-155.87612082,0.00028224,2]
[393788539,1762989034943,-151.0,0.00028224,2]
[393788540,1762989034952,-262.92853531,0.00028224,2]
[393788541,1762989034961,-209.40437684,0.00028224,2]
[393788542,1762989034970,-65349.9476101,0.00028229,2]
[393788543,1762989034979,-151.0,0.0002823,31]
[393788544,1762989034988,-151.0,0.0002823,31]
[393788545,1762989034998,-13069.989522,0.00028231,2]
[393788546,1762989035007,-151.0,0.00028239,2]
[393788547,1762989035017,-151.0,0.00028239,2]
[393788548,1762989035026,-152.248974,0.00028239,30]
[393788549,1762989035035,-476.496212,0.00028239,31]
[393788550,1762989035045,-476.496212,0.00028239,31]
[393788551,1762989035054,-476.496212,0.00028239,31]
[393788552,1762989035063,-476.496212,0.00028239,31]
[393788553,1762989035073,-476.496212,0.00028239,31]
[393788554,1762989035082,-476.496212,0.00028239,31]
[393788555,1762989035091,-476.496212,0.00028239,31]
[393788556,1762989035101,-476.496212,0.00028239,31]
[393788557,1762989035205,-476.496212,0.00028239,31]
[393788558,1762989035215,-476.496212,0.00028239,31]
[393788559,1762989035224,-476.496212,0.00028239,31]
[393788560,1762989035234,-476.496212,0.00028239,31]
[393788561,1762989035244,-155.947575,0.00028241,31]
[393788562,1762989035253,-448.834657,0.00028241,2]
[393788563,1762989035262,-155.947575,0.00028241,31]
[393788564,1762989035271,-448.834657,0.00028241,2]
[393788565,1762989035280,-155.947575,0.00028241,31]
[393788566,1762989035290,-448.834657,0.00028241,2]
[393788567,1762989035300,-155.947575,0.00028241,31]
[393788568,1762989035309,-448.834657,0.00028241,2]
[393788569,1762989035318,-155.947575,0.00028241,31]
[393788570,1762989035328,-155.947575,0.00028241,31]
[393788571,1762989035337,-448.834657,0.00028241,2]
[393788572,1762989035346,-448.834657,0.00028241,2]
[393788573,1762989035356,-155.947575,0.00028241,31]
[393788574,1762989035365,-448.834657,0.00028241,2]
[393788575,1762989035374,-155.947575,0.00028241,31]
[393788576,1762989035383,-448.834657,0.00028241,2]
[393788577,1762989035392,-476.496212,0.00028242,31]
[393788578,1762989035402,-476.496212,0.00028242,31]
[393788579,1762989035411,-476.496212,0.00028242,31]
[393788580,1762989035421,-476.496212,0.00028242,31]
[393788581,1762989035431,-13069.989522,0.00028242,2]
[393788582,1762989035440,-155.947575,0.0002825,31]
[393788583,1762989035449,-448.834657,0.0002825,2]
[393788584,1762989035459,-155.947575,0.0002825,31]
[393788585,1762989035468,-448.834657,0.0002825,2]
[393788586,1762989035478,-155.947575,0.0002825,31]
[393788587,1762989035487,-448.834657,0.0002825,2]
[393788588,1762989035496,-155.947575,0.0002825,31]
[393788589,1762989035505,-448.834657,0.0002825,2]
[393788590,1762989035514,-151.0,0.0002825,2]
[393788591,1762989035527,-151.0,0.00028251,2]
[393788592,1762989035536,-151.0,0.00028251,2]
[393788593,1762989035546,-500.0,0.00028251,2]
[393788594,1762989035555,-151.0,0.00028251,2]
[393788595,1762989035565,-151.0,0.00028251,2]
[393788596,1762989035576,-151.99056464,0.00028251,2]
[393788597,1762989035585,-151.0,0.00028251,2]
[393788598,1762989035594,-151.0,0.00028251,2]
[393788599,1762989035606,-151.0,0.00028251,2]
[393788600,1762989035616,-500.0,0.00028251,60]
[393788601,1762989035626,-500.0,0.00028251,60]
[393788602,1762989035636,-500.0,0.00028251,60]
[393788603,1762989035646,-500.0,0.00028251,60]
[393788604,1762989035655,-500.0,0.00028251,60]
[393788605,1762989035665,-155.947575,0.00028252,31]
[393788606,1762989035674,-448.834657,0.00028252,2]
[393788607,1762989035683,-155.947575,0.00028252,31]
[393788608,1762989035693,-448.834657,0.00028252,2]
[393788609,1762989035702,-155.947575,0.00028252,31]
[393788610,1762989035713,-448.834657,0.00028252,2]
[393788611,1762989035722,-155.947575,0.00028252,31]
[393788612,1762989035732,-448.834657,0.00028252,2]
[393788613,1762989035741,-151.0,0.00028252,31]
[393788614,1762989035751,-151.0,0.00028252,31]
[393788615,1762989035760,-41374.2318643,0.00028252,2]
[393788616,1762989035769,-166.23516869,0.00028273,5]
[393788617,1762989035779,-503.12894742,0.00028273,5]
[393788618,1762989035788,-500.0,0.00028273,5]
[393788619,1762989035797,-501.28912964,0.00028273,5]
[393788620,1762989035806,-599.47892329,0.00028273,5]
[393788621,1762989035815,-500.0,0.00028273,5]
[393788622,1762989035826,-577.21634025,0.00028273,5]
[393788623,1762989035836,-500.0,0.00028273,5]
[393788624,1762989035845,-500.92126911,0.00028273,5]
[393788625,1762989035855,-501.0154439,0.00028273,5]
[393788626,1762989035864,-500.0,0.00028273,5]
[393788627,1762989035874,-500.0,0.00028273,5]
[393788628,1762989035883,-500.0,0.00028273,5]
[393788629,1762989035893,-500.0,0.00028273,5]
[393788630,1762989035903,-500.0,0.00028273,5]
[393788631,1762989035913,-500.0,0.00028273,5]
[393788632,1762989035922,-500.0,0.00028273,5]
[393788633,1762989035932,-500.0,0.00028273,5]
[393788634,1762989035942,-500.0,0.00028273,5]
[393788635,1762989035951,-500.0,0.00028273,5]
[393788636,1762989035960,-500.0,0.00028273,5]
[393788637,1762989035970,-500.0,0.00028273,5]
[393788638,1762989035980,-170.60808093,0.00028273,5]
[393788639,1762989035989,-500.0,0.00028273,5]
[393788640,1762989035999,-519.38600451,0.00028273,5]
[393788641,1762989036008,-500.0,0.00028273,5]
[393788642,1762989036017,-554.38715842,0.00028273,5]
[393788643,1762989036027,-500.0,0.00028273,5]
[393788644,1762989036036,-500.0,0.00028273,5]
[393788645,1762989036045,-151.0,0.00028306,2]
[393788646,1762989036055,-151.0,0.00028306,2]
[393788647,1762989036064,-500.0,0.00028306,2]
[393788648,1762989036076,-151.0,0.00028306,2]
[393788649,1762989036086,-165.25786638,0.00028306,2]
[393788650,1762989036095,-151.0,0.00028361,2]
[393788651,1762989036104,-198.0,0.00028361,2]
[393788652,1762989036114,-500.0,0.00028361,2]
[393788653,1762989036123,-198.0,0.00028361,2]
[393788654,1762989036133,-500.0,0.00028415,2]
[393788655,1762989036143,-1411.44609935,0.00028468,3]
[393788656,1762989036153,-1500.0,0.00028468,5]
[393788657,1762989036163,-1500.0,0.00028468,5]
[393788658,1762989036172,-500.0,0.0002847,2]
[393788659,1762989036181,-500.0,0.00028492,2]
[393788660,1762989036191,-500.0,0.00028525,2]
[393788661,1762989036201,-500.0,0.0002858,2]
[393788662,1762989036210,-171.71594749,0.00028635,2]
[393788663,1762989036220,-309.49755107,0.00028645,30]
[393788664,1762989036229,-189.85788956,0.00028712,2]
[393788665,1762989036238,-500.0,0.00028766,2]
[393788666,1762989036248,-217.15233878,0.00028772,2]
[393788667,1762989036258,-500.0,0.00028821,5]
[393788668,1762989036267,-1000.0,0.00028821,5]
[393788669,1762989036276,-1000.0,0.00028821,5]
[393788670,1762989036285,-1006.76636232,0.00028821,5]
[393788671,1762989036295,-1116.39857661,0.00028821,5]
[393788672,1762989036304,-1000.0,0.00028821,5]
[393788673,1762989036313,-1000.0,0.00028821,5]
[393788674,1762989036323,-1001.12742325,0.00028821,5]
[393788675,1762989036332,-1000.0,0.00028821,5]
[393788676,1762989036342,-1000.8632473,0.00028821,5]
[393788677,1762989036351,-2141.34044155,0.00028829,2]
[393788678,1762989036360,-1000.0,0.00028829,2]
[393788679,1762989036370,-1000.0,0.00028829,2]
[393788680,1762989036379,-1000.0,0.00028829,2]
[393788681,1762989036388,-1000.0,0.00028829,2]
[393788682,1762989036398,-1000.0,0.00028829,2]
[393788683,1762989036408,-1000.0,0.00028829,2]
[393788684,1762989036417,-1000.0,0.00028829,2]
[393788685,1762989036427,-1000.0,0.00028829,2]
[393788686,1762989036436,-1000.0,0.00028829,2]
[393788687,1762989036445,-250.0,0.00028829,2]
[393788688,1762989036454,-1000.0,0.00028829,2]
[393788689,1762989036463,-250.0,0.00028829,2]
[393788690,1762989036473,-574.12855637,0.00028829,2]
[393788691,1762989036482,-250.0,0.00028829,2]
[393788692,1762989036491,-151.0,0.00028829,2]
[393788693,1762989036500,-250.0,0.00028829,2]
[393788694,1762989036510,-209.40437684,0.00028829,2]
[393788695,1762989036519,-250.0,0.00028829,2]
[393788696,1762989036533,-151.0,0.00028829,2]
[393788697,1762989036543,-250.0,0.00028829,2]
[393788698,1762989036552,-1000.0,0.00028829,2]
[393788699,1762989036563,-250.0,0.00028829,2]
[393788700,1762989036576,-151.0,0.00028829,2]
[393788701,1762989036586,-342.61440969,0.00028829,2]
[393788702,1762989036596,-1000.0,0.00028829,2]
[393788703,1762989036606,-250.0,0.00028829,2]
[393788704,1762989036617,-151.0,0.00028829,2]
[393788705,1762989036627,-966.6225507,0.00028829,2]
[393788706,1762989036638,-151.0,0.00028829,2]
[393788707,1762989036647,-250.0,0.00028829,2]
[393788708,1762989036657,-152.9013614,0.00028829,2]
[393788709,1762989036667,-151.0,0.00028829,2]
[393788710,1762989036676,-151.0,0.00028829,2]
[393788711,1762989036686,-250.0,0.00028829,2]
[393788712,1762989036695,-151.0,0.00028829,2]
[393788713,1762989036705,-151.0,0.00028829,2]
[393788714,1762989036715,-250.0,0.00028829,2]
[393788715,1762989036725,-151.0,0.00028829,2]
[393788716,1762989036734,-151.0,0.00028829,2]
[393788717,1762989036744,-151.0,0.00028829,2]
[393788718,1762989036753,-250.0,0.00028829,2]
[393788719,1762989036763,-151.0,0.00028829,2]
[393788720,1762989036772,-151.0,0.00028829,2]
[393788721,1762989036781,-250.0,0.00028829,2]
[393788722,1762989036791,-151.0,0.00028829,2]
[393788723,1762989036800,-151.0,0.00028829,2]
[393788724,1762989036809,-250.0,0.00028829,2]
[393788725,1762989036818,-151.0,0.00028829,2]
[393788726,1762989036830,-151.0,0.00028829,2]
[393788727,1762989036839,-151.0,0.00028829,2]
[393788728,1762989036848,-151.0,0.00028829,2]
[393788729,1762989036857,-151.0,0.00028829,2]
[393788730,1762989036867,-322.6107,0.00028829,2]
[393788731,1762989036876,-151.0,0.00028829,2]
[393788732,1762989036886,-151.0,0.00028829,2]
[393788733,1762989036895,-151.0,0.00028829,2]
[393788734,1762989036904,-151.0,0.00028829,2]
[393788735,1762989036914,-151.0,0.00028829,2]
[393788736,1762989036924,-151.0,0.00028829,2]
[393788737,1762989036933,-250.0,0.00028829,2]
[393788738,1762989036942,-250.0,0.00028829,2]
[393788739,1762989037031,-250.0,0.00028829,2]
[393788740,1762989037051,-151.0,0.00028829,2]
[393788741,1762989037061,-250.0,0.00028829,2]
[393788742,1762989037073,-151.0,0.00028829,2]
[393788743,1762989037084,-999.0,0.00028935,2]
[393788744,1762989037094,-3416.1087561,0.00028935,2]
[393788745,1762989037104,-500.0,0.00028973,5]
[393788746,1762989037114,-500.0,0.00028973,5]
[393788747,1762989037124,-500.0,0.00028973,5]
[393788748,1762989037134,-476.496212,0.00028973,31]
[393788749,1762989037144,-476.496212,0.00028973,31]
[393788750,1762989037154,-476.496212,0.00028973,31]
[393788751,1762989037164,-476.496208,0.00028973,31]
[393788752,1762989037174,-389.70872956,0.00029016,5]
[393788753,1762989037184,-500.0,0.0002904,2]
[393788754,1762989037194,-1022.0,0.0002916,2]
[393788755,1762989037203,-500.0,0.00029314,2]
[393788756,1762989037213,-225.18697532,0.0002932,2]
[393788757,1762989037223,-500.0,0.00029368,5]
[393788758,1762989037233,-500.0,0.00029368,5]
[393788759,1762989037244,-500.0,0.00029368,5]
[393788760,1762989037254,-595.37131296,0.00029377,2]
[393788761,1762989037263,-217.15233878,0.00029377,2]
[393788762,1762989037274,-334.5472959,0.00029377,2]
[393788763,1762989037284,-285.20847033,0.00029521,5]
[393788764,1762989037293,-548.61399577,0.00029521,5]
[393788765,1762989037303,-500.0,0.00029521,5]
[393788766,1762989037312,-420.0,0.0002958,2]
[393788767,1762989037326,-512.14372084,0.00029588,2]
[393788768,1762989037335,-390.38171818,0.00029621,2]
[393788769,1762989037346,-183.54258516,0.000297,2]
[393788770,1762989037355,-183.54258514,0.000297,2]
[393788771,1762989037365,-183.54258514,0.000297,2]
[393788772,1762989037374,-1680.0,0.0002971,2]
[393788773,1762989037383,-1912.46736632,0.00029719,2]
[393788774,1762989037393,-13069.989522,0.00029763,2]
[393788775,1762989037402,-622.64154827,0.00029773,4]
[393788776,1762989037413,-500.0,0.00029773,5]
[393788777,1762989037423,-500.0,0.00029773,5]
[393788778,1762989037432,-151.0,0.00029773,2]
[393788779,1762989037442,-233.51889341,0.00029868,2]
[393788780,1762989037451,-204.0,0.0002989,2]
[393788781,1762989037460,-617.40005154,0.00029925,2]
[393788782,1762989037470,-225.18697532,0.00029925,2]
[393788783,1762989037479,-346.92554585,0.00029925,2]
[393788784,1762989037488,-155.947575,0.00029949,31]
[393788785,1762989037500,-448.834657,0.00029949,2]
[393788786,1762989037509,-155.947575,0.00029949,31]
[393788787,1762989037519,-448.834657,0.00029949,2]
[393788788,1762989037533,-155.947575,0.00029949,31]
[393788789,1762989037544,-448.834657,0.00029949,2]
[393788790,1762989037555,-155.947573,0.00029949,31]
[393788791,1762989037567,-448.834657,0.00029949,2]
[393788792,1762989037580,-151.0,0.00029949,31]
[393788793,1762989037590,-151.0,0.00029949,31]
[393788794,1762989037599,-13069.989522,0.00029956,2]
[393788795,1762989037612,-151.0,0.00029962,2]
[393788796,1762989037622,-151.0,0.00029966,31]
[393788797,1762989037632,-151.0,0.00029966,31]
[393788798,1762989037642,-151.0,0.00029966,31]
[393788799,1762989037651,-151.0,0.00029966,31]
[393788800,1762989037660,-500.0,0.00029967,60]
[393788801,1762989037670,-500.0,0.00029967,60]
[393788802,1762989037679,-191.24671159,0.00029967,2]
[393788803,1762989037688,-254.77975247,0.00029967,2]
[393788804,1762989037698,-164.13386411,0.00029967,2]
[393788805,1762989037707,-500.0,0.00029967,2]
[393788806,1762989037716,-500.0,0.00029967,2]
[393788807,1762989037725,-302.10535272,0.00029967,60]
[393788808,1762989037734,-500.0,0.00029968,60]
[393788809,1762989037743,-151.0,0.00029968,31]
[393788810,1762989037753,-151.0,0.00029968,31]
[393788811,1762989037762,-151.0,0.00029968,31]
[393788812,1762989037771,-268.328977,0.00029968,31]
[393788813,1762989037780,-500.0,0.00029968,2]
[393788814,1762989037789,-13069.989522,0.00029969,2]
[393788815,1762989037800,-500.0,0.00029972,2]
[393788816,1762989037811,-500.0,0.00029972,2]
[393788817,1762989037820,-500.0,0.00029973,5]
[393788818,1762989037831,-500.0,0.00029973,5]
[393788819,1762989037840,-502.07956742,0.00029973,5]
[393788820,1762989037849,-500.0,0.00029973,5]
[393788821,1762989037858,-500.0,0.00029973,5]
[393788823,1762989037867,-500.0,0.00029973,5]
[393788824,1762989037876,-159.12522271,0.00029973,5]
[393788825,1762989037885,-500.0,0.00029973,5]
[393788826,1762989037894,-500.67658786,0.00029973,5]
[393788827,1762989037904,-500.0,0.00029973,5]
[393788828,1762989037913,-500.0,0.00029973,5]
[393788829,1762989037923,-503.11331673,0.00029973,5]
[393788830,1762989037932,-500.0,0.00029973,5]
[393788831,1762989037942,-500.0,0.00029973,5]
[393788832,1762989037951,-500.0,0.00029973,5]
[393788833,1762989037960,-500.0,0.00029973,5]
[393788834,1762989037969,-500.0,0.00029973,5]
[393788836,1762989037978,-500.0,0.00029973,2]
[393788838,1762989037987,-203.88597412,0.00029977,2]
[393788840,1762989037996,-8878.15125164,0.00029979,2]
[393788842,1762989038189,-386.56515386,0.00029979,2]
[393788848,1762989039663,248.0,0.00027851,120]
[393788849,1762989039726,-500.0,0.00027395,2]
[393788850,1762989039736,-241.803839,0.00027395,2]
[393788851,1762989039747,-258.196161,0.00027395,2]
[393788852,1762989039756,-346.80303126,0.00027395,2]
[393788853,1762989039766,-500.0,0.00027395,2]
[393788854,1762989039775,-336.40779832,0.00027395,2]
[393788855,1762989039807,248.0,0.00029243,120]
[393788858,1762989040101,248.0,0.00030705,120]
[393788942,1762989041091,248.0,0.00032241,120]
[393789028,1762989045668,194.0,0.00028218,120]
[393789029,1762989045725,194.0,0.00028208,120]
[393789030,1762989045776,194.0,0.00028198,120]
[393789074,1762989046672,-163.59220168,0.00027395,2]
[393789076,1762989046682,-344.40779832,0.00027395,2]
[393789079,1762989046957,-155.59220168,0.00027395,2]
[393789080,1762989046966,-500.0,0.00027395,2]
[393789081,1762989046975,-500.0,0.00027395,2]
[393789082,1762989046985,-500.0,0.00027395,2]
[393789083,1762989046995,-500.0,0.00027395,2]
[393789084,1762989047004,-500.0,0.00027395,2]
[393789085,1762989047013,-304.40779812,0.00027395,2]
[393789086,1762989047025,-195.59220188,0.00027395,2]
[393789087,1762989047034,-500.0,0.00027395,2]
[393789088,1762989047043,-500.0,0.00027395,2]
[393789089,1762989047052,-500.0,0.00027395,2]
[393789090,1762989047062,-500.0,0.00027395,2]
[393789091,1762989047071,-500.0,0.00027395,2]
[393789092,1762989047080,-500.0,0.00027395,2]
[393789093,1762989047090,-500.0,0.00027395,2]
[393789094,1762989047099,-500.0,0.00027395,2]
[393789095,1762989047108,-500.0,0.00027395,2]
[393789096,1762989047119,-500.0,0.00027395,2]
[393789097,1762989047128,-500.0,0.00027395,2]
[393789098,1762989047138,-500.0,0.00027395,2]
[393789099,1762989047147,-500.0,0.00027395,2]
[393789100,1762989047156,-285.07282242,0.00027395,2]
[393789101,1762989047165,-500.0,0.00027395,2]
[393789102,1762989047175,-270.8155124,0.00027395,2]
[393789103,1762989047185,-500.0,0.00027395,2]
[393789104,1762989047194,-500.0,0.00027395,2]
[393789105,1762989047204,-500.0,0.00027395,2]
[393789106,1762989047214,-500.0,0.00027395,2]
[393789107,1762989047224,-500.0,0.00027395,2]
[393789108,1762989047321,-500.0,0.00027395,2]
[393789109,1762989047331,-500.0,0.00027395,2]
[393789110,1762989047351,-500.0,0.00027395,2]
[393789111,1762989047363,-500.0,0.00027395,2]
[393789112,1762989047374,-500.0,0.00027395,2]
[393789113,1762989047384,-500.0,0.00027395,2]
[393789114,1762989047394,-500.0,0.00027395,2]
[393789115,1762989047404,-500.0,0.00027395,2]
[393789116,1762989047415,-500.0,0.00027395,2]
[393789117,1762989047427,-500.0,0.00027395,2]
[393789118,1762989047437,-500.0,0.00027395,2]
[393789119,1762989047447,-500.0,0.00027395,2]
[393789120,1762989047457,-500.0,0.00027395,2]
[393789121,1762989047467,-500.0,0.00027395,2]
[393789122,1762989047477,-500.0,0.00027395,2]
[393789123,1762989047488,-500.0,0.00027395,2]
[393789124,1762989047499,-500.0,0.00027395,2]
[393789125,1762989047509,-500.0,0.00027395,2]
[393789126,1762989047518,-350.0,0.00027395,2]
[393789127,1762989047529,-500.0,0.00027395,2]
[393789128,1762989047542,-500.0,0.00027395,2]
[393789129,1762989047552,-500.0,0.00027395,2]
[393789130,1762989047562,-500.0,0.00027395,2]
[393789131,1762989047574,-500.0,0.00027395,2]
[393789132,1762989047585,-500.0,0.00027395,2]
[393789133,1762989047595,-500.0,0.00027395,2]
[393789134,1762989047606,-500.0,0.00027395,2]
[393789135,1762989047618,-500.0,0.00027395,2]
[393789136,1762989047628,-500.0,0.00027395,2]
[393789137,1762989047639,-300.0,0.00027395,2]
[393789138,1762989047649,-500.0,0.00027395,2]
[393789139,1762989047659,-500.0,0.00027395,2]
[393789140,1762989047669,-500.0,0.00027395,2]
[393789141,1762989047679,-500.0,0.00027395,2]
[393789142,1762989047689,-500.0,0.00027395,2]
[393789143,1762989047699,-500.0,0.00027395,2]
[393789144,1762989047708,-500.0,0.00027395,2]
[393789145,1762989047718,-500.0,0.00027395,2]
[393789146,1762989047728,-500.0,0.00027395,2]
[393789147,1762989047741,-500.0,0.00027395,2]
[393789148,1762989047751,-500.0,0.00027395,2]
[393789149,1762989047760,-500.0,0.00027395,2]
[393789150,1762989047770,-266.29797746,0.00027395,2]
[393789151,1762989065946,701.75977332,0.00018343,2]
[393789152,1762989066533,701.75977332,0.0002259,2]
[393789153,1762989071496,-230.9208139,0.00026838,2]
[393789154,1762989112741,-470.83895942,0.00026838,2]
[393789155,1762989112768,-234.19939371,0.00026838,2]
[393789156,1762989112795,-555.54208564,0.00027373,2]
[393789157,1762989112820,-500.0,0.00027373,2]
[393789158,1762989112846,-500.0,0.00027373,2]
[393789159,1762989112872,-300.0,0.00027394,2]
[393789160,1762989112898,-234.393,0.00027394,16]
[393789161,1762989112926,-233.70202254,0.00027395,2]
[393789162,1762989112952,-500.0,0.00027395,2]
[393789163,1762989112980,-500.0,0.00027395,2]
[393789164,1762989113012,-500.0,0.00027395,2]
[393789165,1762989113041,-500.0,0.00027395,2]
[393789166,1762989113068,-500.0,0.00027395,2]
[393789167,1762989113101,-500.0,0.00027395,2]
[393789168,1762989113129,-500.0,0.00027395,2]
[393789169,1762989113157,-342.43280958,0.00027395,2]
[393789170,1762989113187,-500.0,0.00027395,2]
[393789171,1762989113221,-500.0,0.00027395,2]
[393789172,1762989113249,-500.0,0.00027395,2]
[393789173,1762989113276,-500.0,0.00027395,2]
[393789174,1762989113303,-500.0,0.00027395,2]
[393789175,1762989113339,-500.0,0.00027395,2]
[393789176,1762989113373,-500.0,0.00027395,2]
[393789177,1762989113401,-500.0,0.00027395,2]
[393789178,1762989113428,-500.0,0.00027395,2]
[393789179,1762989113458,-500.0,0.00027395,2]
[393789180,1762989113485,-500.0,0.00027395,2]
[393789181,1762989113511,-500.0,0.00027395,2]
[393789182,1762989113542,-500.0,0.00027395,2]
[393789183,1762989113572,-500.0,0.00027395,2]
[393789184,1762989113604,-500.0,0.00027395,2]
[393789185,1762989113634,-500.0,0.00027395,2]
[393789186,1762989113664,-500.0,0.00027395,2]
[393789187,1762989113691,-500.0,0.00027395,2]
[393789188,1762989113718,-500.0,0.00027395,2]
[393789189,1762989113745,-500.0,0.00027395,2]
[393789190,1762989113776,-500.0,0.00027395,2]
[393789191,1762989113802,-500.0,0.00027395,2]
[393789192,1762989113833,-500.0,0.00027395,2]
[393789193,1762989113859,-500.0,0.00027395,2]
[393789194,1762989113889,-500.0,0.00027395,2]
[393789195,1762989113915,-500.0,0.00027395,2]
[393789196,1762989113945,-500.0,0.00027395,2]
[393789197,1762989113971,-500.0,0.00027395,2]
[393789198,1762989113998,-500.0,0.00027395,2]
[393789199,1762989114028,-500.0,0.00027395,2]
[393789200,1762989114060,-500.0,0.00027395,2]
[393789201,1762989114087,-500.0,0.00027395,2]
[393789202,1762989114119,-500.0,0.00027395,2]
[393789203,1762989114146,-423.19588142,0.00027395,2]
[393789204,1762989114182,-500.0,0.00027395,2]
[393789205,1762989114216,-500.0,0.00027395,2]
[393789206,1762989114245,-205.69584769,0.00027395,2]
[393789207,1762989115260,-294.30415231,0.00027395,2]